[Event "MCR rapid mládeže 2023 U16"]
[Site "Harachov, Czech Republic"]
[Date "2023.09.09"]
[Round "6.38"]
[White "Vanickova, Natalie"]
[Black "Hamernikova, Iris"]
[Result "0-1"]
[TimeControl "20min+5s/move"]
[WhiteElo "1162"]
[BlackElo "1387"]

1. d4 {[%clk 00:20:02]} {[%emt 00:00:07]} d5 {[%clk 00:20:09]} {[%emt
00:00:03]} 2. c4 {[%clk 00:20:02]} {[%emt 00:00:05]} dxc4 {[%clk 00:20:12]}
{[%emt 00:00:02]} 3. e4 {[%clk 00:20:05]} {[%emt 00:00:01]} Nc6 {[%clk
00:20:15]} {[%emt 00:00:02]} 4. Nf3 {[%clk 00:20:04]} {[%emt 00:00:05]} Nf6
{[%clk 00:20:19]} {[%emt 00:00:03]} 5. Nc3 {[%clk 00:20:07]} {[%emt 00:00:02]}
Bg4 {[%clk 00:20:22]} {[%emt 00:00:01]} 6. d5 {[%clk 00:20:05]} {[%emt
00:00:08]} Ne5 {[%clk 00:20:19]} {[%emt 00:00:06]} 7. Be2 {[%clk 00:20:00]}
{[%emt 00:00:11]} Nxf3+ {[%clk 00:20:21]} {[%emt 00:00:03]} 8. Bxf3 {[%clk
00:20:02]} {[%emt 00:00:03]} Bxf3 {[%clk 00:20:22]} {[%emt 00:00:05]} 9. Qxf3
{[%clk 00:20:03]} {[%emt 00:00:02]} Nd7 {[%clk 00:20:04]} {[%emt 00:00:23]} 10.
Bf4 {[%clk 00:19:43]} {[%emt 00:00:25]} c6 {[%clk 00:19:59]} {[%emt 00:00:12]}
11. O-O {[%clk 00:19:36]} {[%emt 00:00:12]} g6 {[%clk 00:19:34]} {[%emt
00:00:30]} 12. Qe2 {[%clk 00:19:25]} {[%emt 00:00:11]} Bg7 {[%clk 00:19:35]}
{[%emt 00:00:09]} 13. Rac1 {[%clk 00:19:10]} {[%emt 00:00:20]} O-O {[%clk
00:19:34]} {[%emt 00:00:06]} 14. Qxc4 {[%clk 00:19:11]} {[%emt 00:00:03]} cxd5
{[%clk 00:19:37]} {[%emt 00:00:02]} 15. exd5 {[%clk 00:19:04]} {[%emt
00:00:13]} Rc8 {[%clk 00:19:40]} {[%emt 00:00:02]} 16. Qd3 {[%clk 00:19:01]}
{[%emt 00:00:07]} Nc5 {[%clk 00:19:38]} {[%emt 00:00:07]} 17. Qf3 {[%clk
00:17:55]} {[%emt 00:01:06]} e6 {[%clk 00:19:02]} {[%emt 00:00:47]} 18. Rfd1
{[%clk 00:17:29]} {[%emt 00:00:31]} exd5 {[%clk 00:18:31]} {[%emt 00:00:36]} 19.
Nxd5 {[%clk 00:17:00]} {[%emt 00:00:34]} Qh4 {[%clk 00:17:37]} {[%emt
00:00:58]} 20. Bd6 {[%clk 00:15:52]} {[%emt 00:01:14]} Ne6 {[%clk 00:16:48]}
{[%emt 00:00:54]} 21. Bxf8 {[%clk 00:14:54]} {[%emt 00:01:01]} Rxc1 {[%clk
00:16:49]} {[%emt 00:00:05]} 22. Rxc1 {[%clk 00:14:56]} {[%emt 00:00:03]} Bxf8
{[%clk 00:16:38]} {[%emt 00:00:17]} 23. g3 {[%clk 00:14:08]} {[%emt 00:00:52]}
Qg5 {[%clk 00:16:34]} {[%emt 00:00:06]} 24. Rd1 {[%clk 00:13:16]} {[%emt
00:01:00]} Qe5 {[%clk 00:15:29]} {[%emt 00:01:10]} 25. b3 {[%clk 00:12:53]}
{[%emt 00:00:28]} Qb2 {[%clk 00:15:14]} {[%emt 00:00:16]} 26. a4 {[%clk
00:12:47]} {[%emt 00:00:16]} Nd4 {[%clk 00:15:04]} {[%emt 00:00:15]} 27. Qe3
{[%clk 00:08:12]} {[%emt 00:04:36]} Bc5 {[%clk 00:14:40]} {[%emt 00:00:32]} 28.
Qe8+ {[%clk 00:05:56]} {[%emt 00:02:21]} Kg7 {[%clk 00:14:42]} {[%emt
00:00:03]} 29. Qe5+ {[%clk 00:05:37]} {[%emt 00:00:23]} Kg8 {[%clk 00:14:42]}
{[%emt 00:00:05]} 30. Nf6+ {[%clk 00:05:17]} {[%emt 00:00:24]} Kg7 {[%clk
00:14:39]} {[%emt 00:00:09]} 31. Ne4+ {[%clk 00:04:59]} {[%emt 00:00:23]} Kg8
{[%clk 00:14:39]} {[%emt 00:00:06]} 32. Nxc5 {[%clk 00:05:01]} {[%emt
00:00:04]} Nf3+ {[%clk 00:14:40]} {[%emt 00:00:04]} 33. Kg2 {[%clk 00:04:46]}
{[%emt 00:00:19]} Nxe5 {[%clk 00:14:35]} {[%emt 00:00:11]} 34. Nd3 {[%clk
00:04:05]} {[%emt 00:00:45]} Nxd3 {[%clk 00:14:33]} {[%emt 00:00:08]} 35. Rxd3
{[%clk 00:04:08]} {[%emt 00:00:01]} Qc2 {[%clk 00:14:30]} {[%emt 00:00:07]} 36.
Rd8+ {[%clk 00:04:06]} {[%emt 00:00:08]} Kg7 {[%clk 00:14:34]} {[%emt
00:00:02]} 37. Rd7 {[%clk 00:03:58]} {[%emt 00:00:13]} Qc6+ {[%clk 00:13:40]}
{[%emt 00:00:58]} 38. Kg1 {[%clk 00:02:38]} {[%emt 00:01:25]} Qxd7 {[%clk
00:13:18]} {[%emt 00:00:59]} 39. b4 {[%clk 00:02:37]} {[%emt 00:00:09]} Qxa4
{[%clk 00:13:20]} {[%emt 00:00:03]} 40. Kg2 {[%clk 00:02:37]} {[%emt 00:00:05]}
Qxb4 {[%clk 00:13:22]} {[%emt 00:00:03]} 41. Kg1 {[%clk 00:02:38]} {[%emt
00:00:03]} a5 {[%clk 00:13:24]} {[%emt 00:00:04]} 42. Kg2 {[%clk 00:02:41]}
{[%emt 00:00:01]} Qe4+ {[%clk 00:13:23]} {[%emt 00:00:05]} 43. Kg1 {[%clk
00:02:43]} {[%emt 00:00:03]} Qg2+ {[%clk 00:13:24]} {[%emt 00:00:04]} 44. Kxg2
{[%clk 00:02:44]} {[%emt 00:00:04]} a4 {[%clk 00:13:28]} {[%emt 00:00:02]} 45.
Kf3 {[%clk 00:02:45]} {[%emt 00:00:04]} a3 {[%clk 00:13:32]} {[%emt 00:00:01]}
46. Kg2 {[%clk 00:02:47]} {[%emt 00:00:03]} a2 {[%clk 00:13:36]} {[%emt
00:00:01]} 47. Kg1 {[%clk 00:02:50]} {[%emt 00:00:02]} a1=R+ {[%clk 00:13:38]}
{[%emt 00:00:02]} 48. Kg2 {[%clk 00:02:53]} {[%emt 00:00:01]} b5 {[%clk
00:13:42]} {[%emt 00:00:03]} 49. Kh3 {[%clk 00:02:55]} {[%emt 00:00:03]} b4
{[%clk 00:13:36]} {[%emt 00:00:11]} 50. Kg2 {[%clk 00:02:56]} {[%emt 00:00:04]}
Ra2 {[%clk 00:13:39]} {[%emt 00:00:03]} 51. Kf3 {[%clk 00:02:57]} {[%emt
00:00:03]} Rxf2+ {[%clk 00:13:31]} {[%emt 00:00:13]} 52. Kxf2 {[%clk 00:02:58]}
{[%emt 00:00:03]} b3 {[%clk 00:13:35]} {[%emt 00:00:02]} 53. Ke2 {[%clk
00:02:44]} {[%emt 00:00:19]} b2 {[%clk 00:13:39]} {[%emt 00:00:02]} 54. Kf3
{[%clk 00:02:45]} {[%emt 00:00:04]} b1=Q {[%clk 00:12:51]} {[%emt 00:00:52]} 55.
Kg2 {[%clk 00:02:15]} {[%emt 00:00:35]} Qc2+ {[%clk 00:12:53]} {[%emt
00:00:03]} 56. Kf3 {[%clk 00:02:18]} {[%emt 00:00:02]} Qd3+ {[%clk 00:12:56]}
{[%emt 00:00:02]} 57. Kf2 {[%clk 00:02:18]} {[%emt 00:00:04]} f5 {[%clk
00:12:58]} {[%emt 00:00:04]} 58. g4 {[%clk 00:02:20]} {[%emt 00:00:03]} fxg4
{[%clk 00:13:00]} {[%emt 00:00:04]} 59. h3 {[%clk 00:02:23]} {[%emt 00:00:01]}
Qf3+ {[%clk 00:13:02]} {[%emt 00:00:02]} 60. Ke1 {[%clk 00:02:24]} {[%emt
00:00:04]} Kf6 {[%clk 00:13:03]} {[%emt 00:00:04]} 61. hxg4 {[%clk 00:02:27]}
{[%emt 00:00:03]} Ke5 {[%clk 00:13:07]} {[%emt 00:00:02]} 62. g5 {[%clk
00:02:28]} {[%emt 00:00:03]} Kd4 {[%clk 00:13:10]} {[%emt 00:00:02]} 63. Kd2
{[%clk 00:02:29]} {[%emt 00:00:04]} Qf2+ {[%clk 00:13:13]} {[%emt 00:00:02]} 64.
Kd1 {[%clk 00:02:32]} {[%emt 00:00:02]} Kc3 {[%clk 00:13:17]} {[%emt 00:00:02]}
65. Kc1 {[%clk 00:02:29]} {[%emt 00:00:07]} Qe1# {[%emt 00:00:10]} 0-1

[Event "MCR rapid mládeže 2023 U16"]
[Site "Harachov, Czech Republic"]
[Date "2023.09.09"]
[Round "6.39"]
[White "Chmelova, Klara"]
[Black "Najdkova, Laura"]
[Result "1/2-1/2"]
[TimeControl "20min+5s/move"]
[WhiteElo "1145"]
[BlackElo "1331"]

1. e4 {[%clk 00:20:08]} {[%emt 00:00:01]} e5 {[%clk 00:20:09]} {[%emt
00:00:01]} 2. Nf3 {[%clk 00:20:11]} {[%emt 00:00:02]} Nc6 {[%clk 00:20:12]}
{[%emt 00:00:03]} 3. Bc4 {[%clk 00:20:14]} {[%emt 00:00:01]} Bc5 {[%clk
00:20:15]} {[%emt 00:00:02]} 4. c3 {[%clk 00:20:18]} {[%emt 00:00:02]} Nf6
{[%clk 00:20:14]} {[%emt 00:00:05]} 5. d4 {[%clk 00:20:21]} {[%emt 00:00:01]}
exd4 {[%clk 00:20:16]} {[%emt 00:00:03]} 6. cxd4 {[%clk 00:20:24]} {[%emt
00:00:02]} Bb4+ {[%clk 00:20:18]} {[%emt 00:00:04]} 7. Bd2 {[%clk 00:20:24]}
{[%emt 00:00:04]} Bxd2+ {[%clk 00:19:42]} {[%emt 00:00:42]} 8. Nbxd2 {[%clk
00:20:24]} {[%emt 00:00:04]} d5 {[%clk 00:19:31]} {[%emt 00:00:17]} 9. exd5
{[%clk 00:19:58]} {[%emt 00:00:31]} Nxd5 {[%clk 00:19:26]} {[%emt 00:00:10]} 10.
O-O {[%clk 00:19:47]} {[%emt 00:00:14]} O-O {[%clk 00:19:17]} {[%emt 00:00:16]}
11. Re1 {[%clk 00:19:44]} {[%emt 00:00:07]} Bg4 {[%clk 00:19:19]} {[%emt
00:00:04]} 12. Re4 {[%clk 00:18:20]} {[%emt 00:01:28]} Nf6 {[%clk 00:18:26]}
{[%emt 00:00:59]} 13. Re3 {[%clk 00:17:51]} {[%emt 00:00:32]} Nxd4 {[%clk
00:18:13]} {[%emt 00:00:20]} 14. Be2 {[%clk 00:16:53]} {[%emt 00:01:02]} Nxe2+
{[%clk 00:17:47]} {[%emt 00:00:33]} 15. Qxe2 {[%clk 00:16:37]} {[%emt
00:00:19]} Qd6 {[%clk 00:16:48]} {[%emt 00:01:03]} 16. h3 {[%clk 00:16:22]}
{[%emt 00:00:19]} Bh5 {[%clk 00:16:45]} {[%emt 00:00:09]} 17. Rd1 {[%clk
00:16:06]} {[%emt 00:00:17]} Rfe8 {[%clk 00:14:51]} {[%emt 00:02:04]} 18. Ne4
{[%clk 00:15:14]} {[%emt 00:00:56]} Bxf3 {[%clk 00:14:03]} {[%emt 00:00:55]} 19.
Qxf3 {[%clk 00:14:52]} {[%emt 00:00:27]} Qe5 {[%clk 00:13:12]} {[%emt
00:00:53]} 20. Nxf6+ {[%clk 00:14:39]} {[%emt 00:00:22]} Qxf6 {[%clk 00:13:11]}
{[%emt 00:00:06]} 21. Rxe8+ {[%clk 00:14:35]} {[%emt 00:00:08]} Rxe8 {[%clk
00:13:11]} {[%emt 00:00:05]} 22. Qxf6 {[%clk 00:14:11]} {[%emt 00:00:29]} gxf6
{[%clk 00:13:15]} {[%emt 00:00:02]} 23. Rd7 {[%clk 00:14:10]} {[%emt 00:00:05]}
Rc8 {[%clk 00:13:17]} {[%emt 00:00:03]} 24. f4 {[%clk 00:13:58]} {[%emt
00:00:17]} Kf8 {[%clk 00:13:20]} {[%emt 00:00:02]} 25. Kf2 {[%clk 00:14:00]}
{[%emt 00:00:03]} Ke8 {[%clk 00:13:23]} {[%emt 00:00:02]} 26. Rd3 {[%clk
00:13:56]} {[%emt 00:00:04]} Rd8 {[%clk 00:13:21]} {[%emt 00:00:12]} 27. Rxd8+
{[%clk 00:13:48]} {[%emt 00:00:14]} Kxd8 {[%clk 00:13:25]} 28. Ke3 {[%clk
00:13:49]} {[%emt 00:00:04]} Ke7 {[%clk 00:13:29]} 29. g4 {[%clk 00:13:52]}
{[%emt 00:00:03]} Ke6 {[%clk 00:13:31]} {[%emt 00:00:01]} 30. Ke4 {[%clk
00:13:56]} {[%emt 00:00:03]} Ke7 {[%clk 00:13:13]} {[%emt 00:00:23]} 31. b4
{[%clk 00:13:48]} {[%emt 00:00:13]} a6 {[%clk 00:12:40]} {[%emt 00:00:39]} 32.
a4 {[%clk 00:13:51]} {[%emt 00:00:01]} Kd6 {[%clk 00:12:28]} {[%emt 00:00:17]}
33. g5 {[%clk 00:13:42]} {[%emt 00:00:14]} fxg5 {[%clk 00:12:29]} {[%emt
00:00:04]} 34. fxg5 {[%clk 00:13:46]} {[%emt 00:00:02]} Ke6 {[%clk 00:12:29]}
{[%emt 00:00:04]} 35. h4 {[%clk 00:13:46]} {[%emt 00:00:05]} f6 {[%clk
00:12:31]} {[%emt 00:00:03]} 36. gxf6 {[%clk 00:13:47]} {[%emt 00:00:04]} Kxf6
{[%clk 00:12:33]} {[%emt 00:00:01]} 37. Kf4 {[%clk 00:13:51]} {[%emt 00:00:04]}
Kg6 {[%clk 00:12:15]} {[%emt 00:00:21]} 38. Kg4 {[%clk 00:13:49]} {[%emt
00:00:07]} h5+ {[%clk 00:12:05]} {[%emt 00:00:16]} 39. Kf4 {[%clk 00:13:48]}
{[%emt 00:00:06]} Kf6 {[%clk 00:12:09]} {[%emt 00:00:02]} 40. Ke4 {[%clk
00:13:46]} {[%emt 00:00:06]} Ke6 {[%clk 00:12:12]} {[%emt 00:00:01]} 41. Kf4
{[%clk 00:13:50]} {[%emt 00:00:02]} Kf6 {[%clk 00:12:12]} {[%emt 00:00:05]} 42.
Ke4 {[%clk 00:13:49]} {[%emt 00:00:05]} b6 {[%clk 00:12:11]} {[%emt 00:00:07]}
43. b5 {[%clk 00:13:33]} {[%emt 00:00:21]} axb5 {[%clk 00:12:04]} {[%emt
00:00:12]} 44. axb5 {[%clk 00:13:36]} {[%emt 00:00:01]} Ke6 {[%clk 00:11:44]}
{[%emt 00:00:25]} 45. Kd4 {[%clk 00:13:09]} {[%emt 00:00:34]} Kd6 {[%clk
00:10:40]} {[%emt 00:01:08]} 46. Kc4 {[%clk 00:12:24]} {[%emt 00:00:50]} c5
{[%emt 00:00:05]} 47. bxc6 {[%clk 00:12:24]} Kxc6 {[%clk 00:10:48]} {[%emt
00:00:01]} 48. Kb4 {[%clk 00:12:27]} {[%emt 00:00:03]} b5 {[%clk 00:10:51]}
{[%emt 00:00:02]} 49. Kc3 {[%clk 00:12:26]} {[%emt 00:00:02]} Kc5 {[%clk
00:10:54]} {[%emt 00:00:05]} 50. Kb3 {[%clk 00:12:28]} {[%emt 00:00:02]} b4
{[%clk 00:10:59]} {[%emt 00:00:01]} 51. Kb2 {[%clk 00:12:32]} {[%emt 00:00:01]}
Kc4 {[%clk 00:11:03]} {[%emt 00:00:02]} 52. Ka2 {[%clk 00:12:29]} {[%emt
00:00:07]} Kc3 {[%clk 00:11:07]} {[%emt 00:00:01]} 53. Kb1 {[%clk 00:12:33]}
{[%emt 00:00:02]} b3 {[%clk 00:11:10]} 54. Ka1 {[%clk 00:12:34]} {[%emt
00:00:04]} b2+ {[%clk 00:09:26]} {[%emt 00:01:49]} 55. Kb1 {[%clk 00:12:37]}
{[%emt 00:00:02]} Kd3 {[%clk 00:09:30]} 56. Kxb2 {[%clk 00:12:41]} {[%emt
00:00:02]} Ke3 {[%clk 00:09:34]} 57. Kc2 {[%clk 00:12:44]} {[%emt 00:00:03]}
Kf3 {[%clk 00:09:38]} 58. Kd2 {[%clk 00:12:48]} Kg3 {[%clk 00:09:43]} 59. Ke2
{[%clk 00:12:52]} {[%emt 00:00:01]} Kxh4 {[%clk 00:09:46]} {[%emt 00:00:01]} 60.
Kf2 {[%clk 00:12:55]} {[%emt 00:00:02]} Kh3 {[%clk 00:09:49]} {[%emt 00:00:02]}
61. Kg1 {[%clk 00:12:59]} {[%emt 00:00:01]} Kg3 {[%clk 00:09:53]} {[%emt
00:00:02]} 62. Kh1 {[%clk 00:13:00]} {[%emt 00:00:03]} h4 {[%clk 00:09:42]}
{[%emt 00:00:16]} 63. Kg1 {[%clk 00:13:04]} {[%emt 00:00:01]} Kf3 {[%clk
00:08:27]} {[%emt 00:01:20]} 64. Kh2 {[%clk 00:12:58]} {[%emt 00:00:10]} Kg4
{[%clk 00:08:27]} {[%emt 00:00:06]} 65. Kg2 {[%clk 00:13:00]} {[%emt 00:00:01]}
h3+ {[%clk 00:08:15]} {[%emt 00:00:19]} 66. Kh2 {[%clk 00:12:49]} {[%emt
00:00:16]} Kh4 {[%clk 00:07:52]} {[%emt 00:00:28]} 67. Kg1 {[%clk 00:12:39]}
{[%emt 00:00:15]} Kg4 {[%clk 00:06:56]} {[%emt 00:01:01]} 68. Kh2 {[%clk
00:12:38]} {[%emt 00:00:04]} Kh4 {[%clk 00:06:59]} {[%emt 00:00:04]} 69. Kg1
{[%clk 00:12:41]} {[%emt 00:00:02]} Kg3 {[%clk 00:06:59]} {[%emt 00:00:03]} 70.
Kh1 {[%clk 00:12:44]} {[%emt 00:00:03]} h2 {[%clk 00:06:33]} {[%emt 00:00:32]}
1/2-1/2

[Event "MCR rapid mládeže 2023 U16"]
[Site "Harachov, Czech Republic"]
[Date "2023.09.09"]
[Round "6.42"]
[White "Zadrapova, Gabriela"]
[Black "Topencikova, Ellen"]
[Result "1-0"]
[TimeControl "20min+5s/move"]
[WhiteElo "1206"]
[BlackElo "1038"]

1. e4 {[%emt 01:00:55]} c6 {[%emt 00:00:03]} 2. d4 {[%emt 00:00:07]} d5 {[%emt
00:00:03]} 3. exd5 {[%emt 00:00:15]} cxd5 {[%emt 00:00:04]} 4. Nf3 {[%emt
00:00:18]} Bf5 {[%emt 00:00:25]} 5. Nc3 {[%emt 00:00:19]} e6 {[%emt 00:00:15]}
6. Bb5+ {[%emt 00:00:22]} Nd7 {[%emt 00:00:51]} 7. Ne5 {[%emt 00:00:28]} Ngf6
{[%emt 00:00:14]} 8. Bg5 {[%emt 00:00:12]} Bb4 {[%emt 00:06:50]} 9. Bxd7+
{[%emt 00:01:19]} Kf8 {[%emt 00:00:34]} 10. Bb5 {[%emt 00:00:36]} Ne4 {[%emt
00:00:27]} 11. Bxd8 {[%emt 00:00:05]} Nxc3 {[%emt 00:00:32]} 12. Qh5 {[%emt
00:01:15]} g6 {[%emt 00:00:31]} 13. Qh6+ {[%emt 00:00:36]} Kg8 {[%emt
00:00:27]} 14. Bf6 {[%emt 00:00:42]} Ne4+ {[%emt 00:00:21]} 15. c3 {[%emt
00:00:03]} Nxf6 {[%emt 00:00:02]} 16. cxb4 {[%emt 00:00:02]} a6 {[%emt
00:00:54]} 17. Bd3 {[%emt 00:00:36]} Bxd3 {[%emt 00:03:20]} 18. Nxd3 {[%emt
00:00:15]} Ng4 {[%emt 00:00:17]} 19. Qf4 {[%emt 00:00:45]} f5 {[%emt 00:00:07]}
20. h3 {[%emt 00:00:11]} Nf6 {[%emt 00:00:12]} 21. g4 {[%emt 00:00:22]} Kf7
{[%emt 00:01:20]} 22. Qc7+ {[%emt 00:00:44]} Kf8 {[%emt 00:00:14]} 23. gxf5
{[%emt 00:00:34]} exf5 {[%emt 00:00:07]} 24. Qd6+ {[%emt 00:00:08]} Kf7 {[%emt
00:00:07]} 25. Ne5+ {[%emt 00:00:06]} Kg7 {[%emt 00:00:05]} 26. Qe7+ {[%emt
00:00:11]} Kh6 {[%emt 00:00:16]} 27. Qxf6 {[%emt 00:00:17]} Rae8 {[%emt
00:00:28]} 28. Rc1 {[%emt 00:00:28]} Rhf8 {[%emt 00:00:32]} 29. Qh4+ {[%emt
00:00:03]} Kg7 {[%emt 00:00:08]} 30. Rc7+ {[%emt 00:00:05]} Kg8 {[%emt
00:00:15]} 31. Qxh7# {[%emt 00:00:05]} 1-0

[Event "MCR rapid mládeže 2023 U16"]
[Site "Harachov, Czech Republic"]
[Date "2023.09.10"]
[Round "7.1"]
[White "Andrle, Filip"]
[Black "Juhanak, Daniel"]
[Result "1/2-1/2"]
[TimeControl "20min+5s/move"]
[WhiteElo "1649"]
[BlackElo "1878"]

1. e4 {[%clk 00:20:04]} {[%emt 00:00:04]} d6 {[%clk 00:20:01]} {[%emt
00:00:10]} 2. d4 {[%clk 00:20:05]} {[%emt 00:00:04]} Nf6 {[%clk 00:19:46]}
{[%emt 00:00:20]} 3. Nc3 {[%clk 00:20:05]} {[%emt 00:00:04]} g6 {[%clk
00:19:49]} {[%emt 00:00:03]} 4. f3 {[%clk 00:19:54]} {[%emt 00:00:15]} Bg7
{[%clk 00:19:08]} {[%emt 00:00:47]} 5. Be3 {[%clk 00:19:53]} {[%emt 00:00:06]}
O-O {[%clk 00:17:38]} {[%emt 00:01:35]} 6. Qd2 {[%clk 00:19:43]} {[%emt
00:00:15]} e5 {[%clk 00:17:03]} {[%emt 00:00:40]} 7. dxe5 {[%clk 00:18:36]}
{[%emt 00:01:12]} dxe5 {[%clk 00:17:02]} {[%emt 00:00:06]} 8. O-O-O {[%clk
00:17:11]} {[%emt 00:01:30]} Qxd2+ {[%clk 00:14:50]} {[%emt 00:02:17]} 9. Rxd2
{[%clk 00:16:30]} {[%emt 00:00:46]} c6 {[%emt 00:02:33]} 10. a4 {[%clk
00:15:03]} {[%emt 00:00:08]} Be6 {[%clk 00:12:46]} {[%emt 00:01:06]} 11. g3
{[%clk 00:11:35]} {[%emt 00:03:32]} Nbd7 {[%clk 00:11:59]} {[%emt 00:00:52]} 12.
Bh3 {[%clk 00:10:40]} {[%emt 00:00:59]} Bxh3 {[%clk 00:10:33]} {[%emt
00:01:32]} 13. Nxh3 {[%clk 00:10:41]} {[%emt 00:00:04]} Nb6 {[%clk 00:09:51]}
{[%emt 00:00:48]} 14. b3 {[%clk 00:10:26]} {[%emt 00:00:19]} Rad8 {[%clk
00:08:47]} {[%emt 00:01:10]} 15. Rhd1 {[%clk 00:10:06]} {[%emt 00:00:24]} Rxd2
{[%clk 00:07:49]} {[%emt 00:01:03]} 16. Rxd2 {[%clk 00:09:50]} {[%emt
00:00:21]} Re8 {[%clk 00:07:21]} {[%emt 00:00:33]} 17. Kd1 {[%clk 00:08:33]}
{[%emt 00:01:21]} Bf8 {[%clk 00:07:11]} {[%emt 00:00:15]} 18. Rd3 {[%clk
00:07:43]} {[%emt 00:00:55]} Re6 {[%clk 00:04:05]} {[%emt 00:03:12]} 19. Ke2
{[%clk 00:07:08]} {[%emt 00:00:40]} Rd6 {[%clk 00:03:54]} {[%emt 00:00:15]} 20.
Nf2 {[%clk 00:06:47]} {[%emt 00:00:26]} Rd7 {[%clk 00:03:37]} {[%emt 00:00:23]}
21. Ncd1 {[%clk 00:05:30]} {[%emt 00:01:22]} h5 {[%clk 00:03:27]} {[%emt
00:00:15]} 22. h4 {[%clk 00:03:31]} {[%emt 00:02:03]} Be7 {[%clk 00:03:15]}
{[%emt 00:00:18]} 23. Nb2 {[%clk 00:03:16]} {[%emt 00:00:19]} Ba3 {[%clk
00:02:20]} {[%emt 00:01:00]} 24. Bxb6 {[%clk 00:02:11]} {[%emt 00:01:09]} axb6
{[%clk 00:01:15]} {[%emt 00:01:11]} 25. Nc4 {[%clk 00:01:59]} {[%emt 00:00:17]}
Bc5 {[%clk 00:01:02]} {[%emt 00:00:17]} 26. Nxe5 {[%clk 00:01:20]} {[%emt
00:00:44]} Re7 {[%clk 00:01:07]} 27. Nc4 {[%clk 00:00:56]} {[%emt 00:00:28]}
Nd7 {[%clk 00:01:01]} {[%emt 00:00:11]} 28. c3 {[%clk 00:00:23]} {[%emt
00:00:38]} b5 {[%clk 00:00:34]} {[%emt 00:00:32]} 29. axb5 {[%clk 00:00:21]}
{[%emt 00:00:07]} cxb5 {[%clk 00:00:38]} 30. Ne3 {[%clk 00:00:19]} {[%emt
00:00:07]} Nf6 {[%clk 00:00:20]} {[%emt 00:00:23]} 31. Rd8+ {[%clk 00:00:13]}
{[%emt 00:00:10]} Kg7 {[%clk 00:00:24]} {[%emt 00:00:01]} 32. Nd5 {[%clk
00:00:11]} {[%emt 00:00:07]} Nxd5 {[%clk 00:00:15]} {[%emt 00:00:15]} 33. Rxd5
{[%clk 00:00:15]} {[%emt 00:00:01]} Rc7 {[%clk 00:00:10]} {[%emt 00:00:09]} 34.
Nd3 {[%clk 00:00:11]} {[%emt 00:00:08]} Be7 {[%clk 00:00:07]} {[%emt 00:00:08]}
35. Rxb5 {[%clk 00:00:11]} {[%emt 00:00:06]} Rxc3 {[%emt 00:00:06]} 36. Rxb7
{[%clk 00:00:11]} {[%emt 00:00:01]} Rc2+ {[%clk 00:00:09]} {[%emt 00:00:05]} 37.
Ke3 {[%clk 00:00:13]} {[%emt 00:00:03]} Ba3 {[%clk 00:00:12]} {[%emt 00:00:02]}
38. b4 {[%clk 00:00:13]} {[%emt 00:00:05]} Rg2 {[%clk 00:00:14]} {[%emt
00:00:03]} 39. b5 {[%clk 00:00:11]} {[%emt 00:00:08]} Rxg3 {[%clk 00:00:14]}
{[%emt 00:00:05]} 40. b6 {[%clk 00:00:11]} {[%emt 00:00:05]} Rg1 {[%clk
00:00:16]} {[%emt 00:00:03]} 41. Ra7 {[%clk 00:00:10]} {[%emt 00:00:06]} Bd6
{[%clk 00:00:15]} {[%emt 00:00:05]} 42. Ra2 {[%clk 00:00:08]} {[%emt 00:00:06]}
Rb1 {[%clk 00:00:18]} {[%emt 00:00:03]} 43. Rb2 {[%clk 00:00:07]} {[%emt
00:00:06]} Rxb2 {[%clk 00:00:22]} {[%emt 00:00:02]} 44. Nxb2 Bc5+ 45. Kf4
{[%clk 00:00:06]} {[%emt 00:00:03]} Bxb6 {[%clk 00:00:26]} {[%emt 00:00:01]} 46.
Nc4 {[%clk 00:00:10]} {[%emt 00:00:01]} Bf2 {[%clk 00:00:29]} {[%emt 00:00:02]}
47. Nd6 {[%clk 00:00:10]} {[%emt 00:00:04]} Bxh4 {[%clk 00:00:31]} {[%emt
00:00:04]} 48. e5 {[%clk 00:00:13]} {[%emt 00:00:03]} Be7 {[%clk 00:00:31]}
{[%emt 00:00:04]} 49. Ne4 {[%clk 00:00:16]} {[%emt 00:00:02]} Ba3 {[%clk
00:00:23]} {[%emt 00:00:12]} 50. Kg3 {[%clk 00:00:19]} {[%emt 00:00:03]} Bb2
{[%clk 00:00:27]} {[%emt 00:00:02]} 51. f4 {[%clk 00:00:22]} {[%emt 00:00:02]}
Kf8 {[%clk 00:00:25]} {[%emt 00:00:06]} 52. Kf3 {[%clk 00:00:25]} {[%emt
00:00:03]} Ke7 {[%clk 00:00:29]} {[%emt 00:00:01]} 53. Kg3 {[%clk 00:00:23]}
{[%emt 00:00:07]} Ke6 {[%clk 00:00:25]} {[%emt 00:00:09]} 54. Ng5+ {[%clk
00:00:27]} Ke7 {[%clk 00:00:29]} {[%emt 00:00:02]} 55. Ne4 {[%clk 00:00:31]}
{[%emt 00:00:01]} Ba3 {[%clk 00:00:32]} {[%emt 00:00:01]} 56. Kf3 {[%clk
00:00:29]} {[%emt 00:00:06]} Bb4 {[%clk 00:00:35]} {[%emt 00:00:02]} 57. Kg3
{[%clk 00:00:31]} {[%emt 00:00:04]} Ba5 {[%clk 00:00:31]} {[%emt 00:00:10]} 58.
Kf3 {[%clk 00:00:24]} {[%emt 00:00:12]} Bd8 {[%clk 00:00:30]} 59. Kg3 {[%clk
00:00:22]} {[%emt 00:00:07]} Ke6 {[%clk 00:00:35]} {[%emt 00:00:05]} 60. Kf3
{[%clk 00:00:19]} {[%emt 00:00:07]} Be7 {[%clk 00:00:36]} {[%emt 00:00:04]} 61.
Nf2 {[%clk 00:00:17]} {[%emt 00:00:08]} g5 {[%clk 00:00:23]} {[%emt 00:00:17]}
62. fxg5 {[%clk 00:00:13]} {[%emt 00:00:09]} Kxe5 {[%clk 00:00:21]} {[%emt
00:00:08]} 63. Ne4 {[%clk 00:00:07]} {[%emt 00:00:10]} Kf5 {[%clk 00:00:21]}
{[%emt 00:00:05]} 64. Ng3+ {[%clk 00:00:10]} {[%emt 00:00:02]} Kxg5 {[%clk
00:00:24]} {[%emt 00:00:02]} 65. Ne4+ {[%clk 00:00:14]} {[%emt 00:00:01]} Kg6
{[%clk 00:00:26]} {[%emt 00:00:02]} 66. Ng3 {[%clk 00:00:15]} {[%emt 00:00:05]}
h4 {[%clk 00:00:28]} {[%emt 00:00:03]} 67. Ne2 {[%clk 00:00:15]} {[%emt
00:00:05]} Kf5 {[%clk 00:00:24]} {[%emt 00:00:10]} 68. Nd4+ {[%clk 00:00:16]}
{[%emt 00:00:04]} Kg5 {[%clk 00:00:26]} {[%emt 00:00:02]} 69. Nc6 {[%clk
00:00:17]} {[%emt 00:00:04]} Bd6 {[%clk 00:00:27]} {[%emt 00:00:04]} 70. Nd8
{[%clk 00:00:17]} {[%emt 00:00:06]} Kg6 {[%clk 00:00:27]} {[%emt 00:00:05]} 71.
Nxf7 {[%clk 00:00:18]} {[%emt 00:00:03]} Kxf7 {[%clk 00:00:30]} {[%emt
00:00:02]} 72. Kg2 {[%clk 00:00:22]} {[%emt 00:00:01]} Ke8 {[%emt 00:00:09]}
1/2-1/2